[Event "Istanbul Open 2019"]
[Site "Istanbul"]
[Date "2019.08.30"]
[Round "6.4"]
[White "Ozsakallioglu, Okan"]
[Black "Mammadov, Sadig"]
[Result "1-0"]
[ECO "E68"]
[WhiteElo "2324"]
[BlackElo "2243"]
[Annotator "NA"]
[PlyCount "79"]
[EventDate "2019.08.26"]
[EventType "swiss"]
[EventCountry "TUR"]
[SourceTitle "playchess.com"]
[Source "ChessBase"]
[SourceQuality "1"]
[TimeControl "5400+30"]

1. d4 Nf6 2. c4 g6 3. Nf3 Bg7 4. g3 O-O 5. Bg2 d6 6. O-O Nbd7 7. Nc3 e5 8. e4 exd4 9. Nxd4 Re8 10. Be3 Nc5 11. f3 Bd7 12. Qd2 a5 13. Ndb5 Qc8 14. Rad1 a4 15. Rfe1 Bc6 16. Bxc5 dxc5 17. e5 Nd7 18. f4 Nb6 19. b3 Kh8 {[%emt 0:46:30]} 20. Qf2 {[%emt 0:36:00]} axb3 {[%emt 0:06:30]} 21. axb3 {[%emt 0:00:00]} g5 {[%emt 0:05:30]} 22. fxg5 {[%emt 0:03:00]} Bxg2 {[%emt 0:01:30]} 23. Kxg2 {[%emt 0:00:30]} Rxe5 {[%emt 0:01:30]} 24. Rxe5 {[%emt 0:00:30]} Bxe5 {[%emt 0:00:30]} 25. Qxc5 {[%emt 0:00:30]} Bg7 {[%emt 0:12:30]} 26. Rd2 {[%emt 0:02:30]} Nd7 {[%emt 0:25:29]} 27. Qxc7 {[%emt 0:01:30]} Nc5 {[%emt 0:00:26]} 28. Qxc8+ {[%emt 0:06:30]} Rxc8 {[%emt 0:00:04]} 29. Rf2 {[%emt 0:00:30]} Nxb3 {[%emt 0:01:46]} 30. Nd6 {[%emt 0:00:30]} Rc7 {[%emt 0:02:00]} 31. Nd5 {[%emt 0:00:30]} Rd7 {[%emt 0:00:39]} 32. Nxf7+ {[%emt 0:00:30]} Kg8 {[%emt 0:00:30]} 33. Nh6+ {[%emt 0:00:00]} Kh8 {[%emt 0:00:00]} 34. Re2 {[%emt 0:01:00]} Bf8 {[%emt 0:00:48]} 35. Re8 {[%emt 0:01:30]} Kg7 {[%emt 0:00:01]} 36. Ne3 {[%emt 0:00:00]} Nd4 {[%emt 0:00:13]} 37. h4 {[%emt 0:00:00]} Rc7 {[%emt 0:00:49]} 38. Re4 {[%emt 0:00:30]} Nc6 {[%emt 0:00:13]} 39. Nef5+ {[%emt 0:00:30]} Kg6 {[%emt 0:01:14]} 40. Re6+ {[%emt 0:00:00]} 1-0

[Event "Istanbul Open 2019"]
[Site "Istanbul"]
[Date "2019.08.30"]
[Round "6.5"]
[White "Nuri, Murad"]
[Black "Senyuz, Mustafa Zorbey"]
[Result "1-0"]
[ECO "E93"]
[WhiteElo "2291"]
[BlackElo "1844"]
[Annotator "NA"]
[PlyCount "73"]
[EventDate "2019.08.26"]
[EventType "swiss"]
[EventCountry "TUR"]
[SourceTitle "playchess.com"]
[Source "ChessBase"]
[SourceQuality "1"]
[TimeControl "5400+30"]

1. c4 Nf6 2. Nc3 g6 3. e4 d6 4. d4 Bg7 5. Be2 O-O 6. Nf3 e5 7. d5 a5 8. Bg5 h6 9. Bh4 Na6 10. Nd2 Nc5 11. O-O g5 12. Bg3 Ne8 13. Nb3 b6 14. Nxc5 bxc5 15. Bd3 Bd7 16. Qc2 Rb8 17. f3 Qc8 18. Be1 Qb7 19. Rb1 Bf6 20. Rf2 Ng7 21. Nd1 Qa6 {[%emt 0:23:30]} 22. Ne3 {[%emt 0:54:00]} Bd8 {[%emt 0:03:30]} 23. Bc3 {[%emt 0:00:30]} Ra8 {[%emt 0:00:30]} 24. g3 {[%emt 0:00:30]} Nh5 {[%emt 0:07:30]} 25. Kh1 {[%emt 0:04:30]} f6 {[%emt 0:04:30]} 26. Qe2 {[%emt 0:03:30]} Be7 {[%emt 0:02:30]} 27. f4 {[%emt 0:01:30]} Ng7 {[%emt 0:00:30]} 28. Rbf1 {[%emt 0:07:30]} Rae8 {[%emt 0:06:30]} 29. h4 {[%emt 0:05:30]} a4 {[%emt 0:03:30]} 30. hxg5 {[%emt 0:01:30]} hxg5 {[%emt 0:00:30]} 31. Rh2 {[%emt 0:00:30]} Qc8 {[%emt 0:01:30]} 32. Rff2 {[%emt 0:07:35]} Rd8 {[%emt 0:04:30]} 33. Rh6 {[%emt 0:00:25]} Rde8 {[%emt 0:00:30]} 34. Rfh2 {[%emt 0:03:59]} gxf4 {[%emt 0:02:30]} 35. gxf4 {[%emt 0:00:09]} exf4 {[%emt 0:00:00]} 36. e5 {[%emt 0:04:30]} fxe3 {[%emt 0:02:00]} 37. Bh7+ {[%emt 0:00:06]} 1-0

[Event "Istanbul Open 2019"]
[Site "Istanbul"]
[Date "2019.08.30"]
[Round "6.7"]
[White "Ozsakkiloglu, Akin"]
[Black "Citak, Selim"]
[Result "1-0"]
[ECO "C49"]
[WhiteElo "2067"]
[BlackElo "2263"]
[Annotator "NA"]
[PlyCount "69"]
[EventDate "2019.08.26"]
[EventType "swiss"]
[EventCountry "TUR"]
[SourceTitle "playchess.com"]
[Source "ChessBase"]
[SourceQuality "1"]
[TimeControl "5400+30"]

1. e4 e5 2. Nf3 Nc6 3. Nc3 Nf6 4. Bb5 Bb4 5. O-O Bxc3 6. bxc3 d6 7. d4 O-O 8. Qd3 Bd7 9. Bg5 h6 10. Bh4 Qe8 11. Bxf6 gxf6 12. Bxc6 bxc6 13. Nd2 Kh7 14. f4 exd4 15. cxd4 Rg8 16. Rae1 Qf8 17. e5+ f5 18. Nc4 {[%emt 0:47:00]} Qg7 {[%emt 0:33:00]} 19. g3 {[%emt 0:10:30]} Be6 {[%emt 0:03:30]} 20. Ne3 {[%emt 0:00:00]} Qg6 {[%emt 0:06:30]} 21. c4 {[%emt 0:02:00]} Rad8 {[%emt 0:04:30]} 22. Qc3 {[%emt 0:02:30]} dxe5 {[%emt 0:07:30]} 23. fxe5 {[%emt 0:01:30]} f6 {[%emt 0:00:30]} 24. Ng2 {[%emt 0:00:30]} fxe5 {[%emt 0:01:30]} 25. Rxe5 {[%emt 0:00:30]} Qf7 {[%emt 0:01:30]} 26. Rfe1 {[%emt 0:08:30]} Rde8 {[%emt 0:00:30]} 27. Nf4 {[%emt 0:01:30]} Bd7 {[%emt 0:00:00]} 28. d5 {[%emt 0:00:30]} Rxe5 {[%emt 0:02:00]} 29. Rxe5 {[%emt 0:01:30]} Re8 {[%emt 0:00:30]} 30. Rxe8 {[%emt 0:00:30]} Qxe8 {[%emt 0:00:30]} 31. Qf6 {[%emt 0:02:30]} cxd5 {[%emt 0:03:30]} 32. cxd5 {[%emt 0:00:30]} Qg8 {[%emt 0:06:30]} 33. Nh5 {[%emt 0:06:30]} Be8 {[%emt 0:04:30]} 34. Qe7+ {[%emt 0:00:30]} Qf7 {[%emt 0:01:30]} 35. Qxe8 {[%emt 0:00:00]} 1-0

[Event "Istanbul Open 2019"]
[Site "Istanbul"]
[Date "2019.08.30"]
[Round "6.8"]
[White "Yarashov, Azat"]
[Black "Akbas, Umut Ata"]
[Result "1-0"]
[ECO "D02"]
[WhiteElo "2156"]
[BlackElo "1986"]
[Annotator "NA"]
[PlyCount "89"]
[EventDate "2019.08.26"]
[EventType "swiss"]
[EventCountry "TUR"]
[SourceTitle "playchess.com"]
[Source "ChessBase"]
[SourceQuality "1"]
[TimeControl "5400+30"]

1. d4 Nf6 2. Nf3 e6 3. g3 d5 4. Bg2 Be7 5. O-O O-O 6. b3 c5 7. e3 Nbd7 8. Bb2 Qc7 9. Nbd2 b6 10. c4 dxc4 11. Nxc4 Bb7 12. Rc1 Rfd8 13. Qe2 Rac8 14. Rfd1 Qb8 15. dxc5 Nxc5 16. Be5 Rxd1+ 17. Rxd1 Qa8 18. Bd6 Bd8 19. Bxc5 Rxc5 20. Nd6 Bc6 {[%emt 0:28:00]} 21. b4 {[%emt 0:49:30]} Rd5 {[%emt 0:00:30]} 22. Nd4 {[%emt 0:28:30]} Rxd4 {[%emt 0:10:30]} 23. Rxd4 {[%emt 0:00:30]} Bxg2 {[%emt 0:00:30]} 24. e4 {[%emt 0:00:30]} e5 {[%emt 0:01:30]} 25. Qc4 {[%emt 0:00:00]} Be7 {[%emt 0:02:30]} 26. Qxf7+ {[%emt 0:03:00]} Kh8 {[%emt 0:00:30]} 27. Qxe7 {[%emt 0:05:43]} exd4 {[%emt 0:00:00]} 28. Kxg2 {[%emt 0:00:19]} h6 {[%emt 0:01:00]} 29. Kf3 {[%emt 0:00:36]} Qc6 {[%emt 0:01:30]} 30. Nf5 {[%emt 0:02:01]} Ne8 {[%emt 0:00:30]} 31. Nxd4 {[%emt 0:02:06]} Qc3+ {[%emt 0:00:30]} 32. Kg2 {[%emt 0:00:00]} Qxd4 {[%emt 0:00:30]} 33. Qxe8+ {[%emt 0:00:00]} Kh7 {[%emt 0:00:00]} 34. Qe7 {[%emt 0:00:18]} Qc4 {[%emt 0:01:00]} 35. a4 {[%emt 0:01:12]} a6 {[%emt 0:00:30]} 36. a5 {[%emt 0:01:26]} b5 {[%emt 0:00:30]} 37. h4 {[%emt 0:00:40]} Qe2 {[%emt 0:01:30]} 38. Qe5 {[%emt 0:02:12]} Qc4 {[%emt 0:00:30]} 39. Qf5+ {[%emt 0:00:43]} Kh8 {[%emt 0:00:00]} 40. e5 {[%emt 0:00:07]} Qd5+ {[%emt 0:02:00]} 41. Kh2 {[%emt 0:01:30]} Kg8 {[%emt 0:00:00]} 42. Qc8+ {[%emt 0:00:38]} Kh7 {[%emt 0:00:00]} 43. Qxa6 {[%emt 0:01:59]} Qxe5 {[%emt 0:00:30]} 44. Qb7 {[%emt 0:00:13]} Qd4 {[%emt 0:00:30]} 45. Kg2 {[%emt 0:00:06]} 1-0

[Event "Istanbul Open 2019"]
[Site "Istanbul"]
[Date "2019.08.30"]
[Round "6.9"]
[White "Yarar, Muammer Atakan"]
[Black "Erdogan, Anil Berk"]
[Result "0-1"]
[ECO "A67"]
[WhiteElo "1779"]
[BlackElo "2144"]
[Annotator "NA"]
[PlyCount "84"]
[EventDate "2019.08.26"]
[EventType "swiss"]
[EventCountry "TUR"]
[SourceTitle "playchess.com"]
[Source "ChessBase"]
[SourceQuality "1"]
[TimeControl "5400+30"]

1. d4 Nf6 2. c4 c5 3. d5 e6 4. Nc3 exd5 5. cxd5 d6 6. e4 g6 7. f4 Bg7 8. Bb5+ Nfd7 9. Nf3 O-O 10. O-O a6 11. Bd3 b5 12. Kh1 Re8 13. Be3 Nb6 14. a3 Bxc3 15. bxc3 Nxd5 16. Bd2 Nf6 17. e5 dxe5 18. fxe5 Qxd3 19. exf6 Nc6 20. Bg5 {[%emt 0:27:00]} Qxd1 {[%emt 0:51:00]} 21. Raxd1 {[%emt 0:00:30]} Bg4 {[%emt 0:00:30]} 22. Rd6 {[%emt 0:00:30]} Bxf3 {[%emt 0:03:30]} 23. gxf3 {[%emt 0:00:30]} Ne5 {[%emt 0:01:30]} 24. Rd5 {[%emt 0:00:30]} Rac8 {[%emt 0:01:30]} 25. Be3 {[%emt 0:01:30]} c4 {[%emt 0:05:30]} 26. Bd4 {[%emt 0:06:30]} Nc6 {[%emt 0:04:30]} 27. Bf2 {[%emt 0:00:30]} Ne5 {[%emt 0:06:30]} 28. Bd4 {[%emt 0:01:30]} Nd3 {[%emt 0:00:30]} 29. Rb1 {[%emt 0:06:30]} Rcd8 {[%emt 0:02:30]} 30. Rg5 {[%emt 0:01:30]} h6 {[%emt 0:00:30]} 31. Rg2 {[%emt 0:00:30]} Kh7 {[%emt 0:00:30]} 32. h4 {[%emt 0:00:30]} Rd5 {[%emt 0:00:30]} 33. Kh2 {[%emt 0:00:30]} Re6 {[%emt 0:10:03]} 34. Ra2 {[%emt 0:00:30]} g5 {[%emt 0:02:59]} 35. Rg1 {[%emt 0:03:30]} Nf4 {[%emt 0:01:12]} 36. hxg5 {[%emt 0:00:30]} Rxg5 {[%emt 0:02:16]} 37. Rxg5 {[%emt 0:01:30]} hxg5 {[%emt 0:00:01]} 38. a4 {[%emt 0:00:30]} Re2+ {[%emt 0:01:16]} 39. Rxe2 {[%emt 0:00:30]} Nxe2 {[%emt 0:00:00]} 40. axb5 {[%emt 0:00:00]} axb5 {[%emt 0:00:11]} 41. Be5 {[%emt 0:00:00]} Kg6 {[%emt 0:00:30]} 42. Kh3 {[%emt 0:00:30]} Kf5 {[%emt 0:00:00]} 0-1

[Event "Istanbul Open 2019"]
[Site "Istanbul"]
[Date "2019.08.30"]
[Round "6.10"]
[White "Caglar, Ahmet Ata"]
[Black "Ozbay, Ece"]
[Result "0-1"]
[ECO "B30"]
[WhiteElo "2055"]
[BlackElo "2125"]
[Annotator "NA"]
[PlyCount "84"]
[EventDate "2019.08.26"]
[EventType "swiss"]
[EventCountry "TUR"]
[SourceTitle "playchess.com"]
[Source "ChessBase"]
[SourceQuality "1"]
[TimeControl "5400+30"]

1. e4 c5 2. Nc3 Nc6 3. Nf3 e6 4. Bb5 Qc7 5. O-O d6 6. Re1 Bd7 7. b3 Be7 8. Bb2 Bf6 9. Bxc6 Bxc6 10. Nd5 Bxd5 11. Bxf6 Nxf6 12. exd5 Nxd5 13. d4 O-O 14. c4 Ne7 15. Qd3 Ng6 16. h4 h6 17. Re4 e5 18. dxc5 {[%emt 0:28:00]} Qxc5 {[%emt 0:57:00]} 19. Rg4 {[%emt 0:01:30]} Nf4 {[%emt 0:02:30]} 20. Qd2 {[%emt 0:01:30]} f5 {[%emt 0:05:30]} 21. Rg3 {[%emt 0:00:30]} Rf6 {[%emt 0:02:30]} 22. Rd1 {[%emt 0:07:30]} Re8 {[%emt 0:06:30]} 23. Ne1 {[%emt 0:01:30]} Nh5 {[%emt 0:02:30]} 24. Rd3 {[%emt 0:00:30]} Ree6 {[%emt 0:02:30]} 25. Rd5 {[%emt 0:10:30]} Qc6 {[%emt 0:05:25]} 26. Nd3 {[%emt 0:00:30]} Rg6 {[%emt 0:01:47]} 27. Qe2 {[%emt 0:03:30]} Rg4 {[%emt 0:04:36]} 28. f3 {[%emt 0:04:30]} Rgg6 {[%emt 0:01:35]} 29. Qf2 {[%emt 0:02:30]} b6 {[%emt 0:03:59]} 30. Rb5 {[%emt 0:02:30]} Qe8 {[%emt 0:02:41]} 31. f4 {[%emt 0:18:30]} e4 {[%emt 0:01:57]} 32. Nc1 {[%emt 0:00:00]} e3 {[%emt 0:00:10]} 33. Qf3 {[%emt 0:00:00]} Rg3 {[%emt 0:00:00]} 34. Qb7 {[%emt 0:01:30]} e2 {[%emt 0:00:54]} 35. Re1 {[%emt 0:00:30]} Nxf4 {[%emt 0:00:11]} 36. Rxf5 {[%emt 0:01:30]} Nxg2 {[%emt 0:00:37]} 37. Nxe2 {[%emt 0:01:30]} Rxe2 {[%emt 0:03:04]} 38. Rxe2 {[%emt 0:00:30]} Qxe2 {[%emt 0:00:14]} 39. Qf7+ {[%emt 0:01:10]} Kh7 {[%emt 0:00:30]} 40. Kh2 {[%emt 0:00:20]} Rg6 {[%emt 0:00:48]} 41. Rf2 {[%emt 0:00:46]} Qe5+ {[%emt 0:00:02]} 42. Kh1 {[%emt 0:00:14]} Nxh4 {[%emt 0:00:35]} 0-1

[Event "Istanbul Open 2019"]
[Site "Istanbul"]
[Date "2019.08.30"]
[Round "6.11"]
[White "Oner, Oguz"]
[Black "Ozer, Omer Faruk"]
[Result "0-1"]
[ECO "E15"]
[WhiteElo "1997"]
[BlackElo "2357"]
[Annotator "NA"]
[PlyCount "82"]
[EventDate "2019.08.26"]
[EventType "swiss"]
[EventCountry "TUR"]
[SourceTitle "playchess.com"]
[Source "ChessBase"]
[SourceQuality "1"]
[TimeControl "5400+30"]

1. d4 Nf6 2. c4 e6 3. Nf3 b6 4. g3 c6 5. Bg2 Be7 6. Nfd2 d5 7. e4 Ba6 8. e5 Nfd7 9. Nc3 b5 10. b3 {[%emt 0:49:00]} Bb4 {[%emt 0:00:00]} 11. Qc2 {[%emt 0:04:30]} bxc4 {[%emt 0:37:30]} 12. bxc4 {[%emt 0:03:30]} Nb6 {[%emt 0:00:30]} 13. cxd5 {[%emt 0:08:30]} exd5 {[%emt 0:08:30]} 14. a3 {[%emt 0:02:30]} Be7 {[%emt 0:00:30]} 15. Bf1 {[%emt 0:03:30]} O-O {[%emt 0:07:30]} 16. Bxa6 {[%emt 0:04:30]} Nxa6 {[%emt 0:00:30]} 17. Qd3 {[%emt 0:01:30]} Nc7 {[%emt 0:02:30]} 18. O-O {[%emt 0:01:30]} Ne6 {[%emt 0:00:30]} 19. f4 {[%emt 0:02:10]} f5 {[%emt 0:03:30]} 20. a4 {[%emt 0:03:24]} c5 {[%emt 0:02:30]} 21. dxc5 {[%emt 0:03:29]} Nxc5 {[%emt 0:02:30]} 22. Qf3 {[%emt 0:01:12]} d4 {[%emt 0:00:00]} 23. Nb5 {[%emt 0:01:16]} a6 {[%emt 0:03:00]} 24. Na3 {[%emt 0:00:44]} d3 {[%emt 0:00:30]} 25. Rb1 {[%emt 0:03:37]} Nbxa4 {[%emt 0:00:30]} 26. Rb4 {[%emt 0:02:11]} Nc3 {[%emt 0:01:30]} 27. Rc4 {[%emt 0:03:41]} N5e4 {[%emt 0:00:30]} 28. Nab1 {[%emt 0:01:10]} Nxb1 {[%emt 0:00:30]} 29. Nxb1 {[%emt 0:00:30]} Qb6+ {[%emt 0:00:30]} 30. Be3 {[%emt 0:00:30]} Qb5 {[%emt 0:00:30]} 31. Rfc1 {[%emt 0:00:34]} Rfd8 {[%emt 0:02:30]} 32. Nd2 {[%emt 0:00:46]} Ba3 {[%emt 0:00:30]} 33. Nxe4 {[%emt 0:01:36]} fxe4 {[%emt 0:00:00]} 34. Qxe4 {[%emt 0:00:19]} Bxc1 {[%emt 0:00:00]} 35. Rxc1 {[%emt 0:00:13]} Rac8 {[%emt 0:01:30]} 36. Rd1 {[%emt 0:00:28]} Qb3 {[%emt 0:02:30]} 37. Rd2 {[%emt 0:01:07]} Rc2 {[%emt 0:00:30]} 38. Kf2 {[%emt 0:00:30]} Qc3 {[%emt 0:00:30]} 39. Ke1 {[%emt 0:00:25]} Qa1+ {[%emt 0:00:30]} 40. Kf2 {[%emt 0:00:15]} Qc3 {[%emt 0:02:30]} 41. Ke1 {[%emt 0:00:16]} Rb2 {[%emt 0:00:30]} 0-1

[Event "Istanbul Open 2019"]
[Site "Istanbul"]
[Date "2019.08.30"]
[Round "6.12"]
[White "Ozdemir, Serhan Berat"]
[Black "Aliakbarov, Anar"]
[Result "1-0"]
[ECO "C54"]
[WhiteElo "1978"]
[BlackElo "2265"]
[Annotator "NA"]
[PlyCount "73"]
[EventDate "2019.08.26"]
[EventType "swiss"]
[EventCountry "TUR"]
[SourceTitle "playchess.com"]
[Source "ChessBase"]
[SourceQuality "1"]
[TimeControl "5400+30"]

1. e4 e5 2. Nf3 Nc6 3. d4 exd4 4. Bc4 Bc5 5. c3 Nf6 6. e5 d5 7. Bb5 Ne4 8. cxd4 Bb6 9. h3 O-O 10. Be3 Bd7 11. Bxc6 Bxc6 12. O-O f6 13. Nc3 Nxc3 14. bxc3 Bb5 15. Re1 c6 16. Bf4 a5 17. a4 Ba6 18. e6 Re8 19. Nh4 Bc7 20. Bxc7 Qxc7 21. Qg4 g6 22. Re3 {[%emt 0:29:00]} Kh8 {[%emt 0:49:00]} 23. Rae1 {[%emt 0:02:30]} Qg7 {[%emt 0:05:30]} 24. e7 {[%emt 0:02:30]} f5 {[%emt 0:01:30]} 25. Qg5 {[%emt 0:01:30]} f4 {[%emt 0:07:30]} 26. Rf3 {[%emt 0:19:30]} b5 {[%emt 0:05:30]} 27. Re6 {[%emt 0:00:30]} bxa4 {[%emt 0:01:30]} 28. Nxg6+ {[%emt 0:16:30]} Kg8 {[%emt 0:00:30]} 29. Rf6 {[%emt 0:05:30]} a3 {[%emt 0:01:30]} 30. R3xf4 {[%emt 0:02:30]} a2 {[%emt 0:02:30]} 31. Rf8+ {[%emt 0:00:30]} Rxf8 {[%emt 0:00:30]} 32. exf8=Q+ {[%emt 0:00:00]} Rxf8 {[%emt 0:00:30]} 33. Ne7+ {[%emt 0:01:00]} Kh8 {[%emt 0:01:30]} 34. Rxf8+ {[%emt 0:00:30]} Qxf8 {[%emt 0:00:30]} 35. Qe5+ {[%emt 0:00:00]} Qg7 {[%emt 0:00:00]} 36. Qb8+ {[%emt 0:00:00]} Qg8 {[%emt 0:00:00]} 37. Qxg8# {[%emt 0:00:00]} 1-0

[Event "Istanbul Open 2019"]
[Site "Istanbul"]
[Date "2019.08.30"]
[Round "6.13"]
[White "Annaberdiyev, Babageldi"]
[Black "Onem, Uzay Altay"]
[Result "1/2-1/2"]
[ECO "D13"]
[WhiteElo "2242"]
[BlackElo "1997"]
[Annotator "NA"]
[PlyCount "36"]
[EventDate "2019.08.26"]
[EventType "swiss"]
[EventCountry "TUR"]
[SourceTitle "playchess.com"]
[Source "ChessBase"]
[SourceQuality "1"]
[TimeControl "5400+30"]

1. Nf3 Nf6 2. d4 e6 3. g3 b6 4. Bg2 Bb7 5. O-O c5 6. c3 cxd4 7. cxd4 Be7 8. Nc3 d5 9. Bf4 O-O 10. Rc1 Nc6 11. Ne5 Rc8 12. Nxc6 Rxc6 13. Qa4 Qd7 14. e4 dxe4 15. Nxe4 Nd5 16. Bd2 a6 17. Nc3 b5 18. Qb3 Nxc3 {[%emt 0:37:00]} 1/2-1/2

[Event "Istanbul Open 2019"]
[Site "Istanbul"]
[Date "2019.08.30"]
[Round "6.14"]
[White "Demirbas, Emre"]
[Black "Bayramov, Elvin"]
[Result "1/2-1/2"]
[ECO "A30"]
[WhiteElo "1879"]
[BlackElo "2198"]
[Annotator "NA"]
[PlyCount "102"]
[EventDate "2019.08.26"]
[EventType "swiss"]
[EventCountry "TUR"]
[SourceTitle "playchess.com"]
[Source "ChessBase"]
[SourceQuality "1"]
[TimeControl "5400+30"]

1. Nf3 Nf6 2. c4 c5 3. g3 g6 4. b3 Bg7 5. Bb2 Nc6 6. Bg2 O-O 7. d4 cxd4 8. Nxd4 d5 9. cxd5 Nxd5 10. Nxc6 bxc6 11. Bxg7 Kxg7 12. O-O e5 13. Qc2 Qe7 14. Nc3 Bf5 15. Qb2 Nb6 16. Rfd1 Rac8 17. Rac1 Kg8 18. Ne4 Bxe4 19. Bxe4 c5 20. h4 Rfd8 21. h5 f5 22. Bd3 {[%emt 0:47:00]} Rd4 {[%emt 0:32:00]} 23. e3 {[%emt 0:04:30]} Rd6 {[%emt 0:02:30]} 24. Qc2 {[%emt 0:02:30]} Kg7 {[%emt 0:01:30]} 25. Ba6 {[%emt 0:04:30]} Rc7 {[%emt 0:01:30]} 26. Rxd6 {[%emt 0:00:30]} Qxd6 {[%emt 0:00:30]} 27. Rd1 {[%emt 0:01:30]} Qf6 {[%emt 0:01:30]} 28. hxg6 {[%emt 0:01:30]} hxg6 {[%emt 0:00:30]} 29. Bb5 {[%emt 0:02:30]} e4 {[%emt 0:03:30]} 30. a4 {[%emt 0:02:30]} Nc8 {[%emt 0:01:30]} 31. Rd5 {[%emt 0:04:30]} Qe7 {[%emt 0:09:30]} 32. Qc3+ {[%emt 0:01:30]} Kh7 {[%emt 0:02:30]} 33. Kg2 {[%emt 0:03:30]} Nd6 {[%emt 0:04:30]} 34. Rd1 {[%emt 0:03:30]} Nf7 {[%emt 0:02:30]} 35. Rh1+ {[%emt 0:05:30]} Nh6 {[%emt 0:00:00]} 36. Qd2 {[%emt 0:03:27]} Rc8 {[%emt 0:03:00]} 37. Rd1 {[%emt 0:01:22]} Nf7 {[%emt 0:00:30]} 38. Qa5 {[%emt 0:02:07]} Rd8 {[%emt 0:02:30]} 39. Rxd8 {[%emt 0:00:48]} Nxd8 {[%emt 0:00:30]} 40. Bc4 {[%emt 0:00:00]} Nc6 {[%emt 0:00:00]} 41. Qb5 {[%emt 0:02:08]} Ne5 {[%emt 0:03:00]} 42. a5 {[%emt 0:01:38]} Kh6 {[%emt 0:03:30]} 43. a6 {[%emt 0:04:42]} Nf3 {[%emt 0:00:30]} 44. Be2 {[%emt 0:00:43]} Ne1+ {[%emt 0:02:30]} 45. Kf1 {[%emt 0:01:06]} Nc2 {[%emt 0:00:00]} 46. Qb7 {[%emt 0:02:20]} Qg7 {[%emt 0:00:00]} 47. Kg2 {[%emt 0:01:58]} Ne1+ {[%emt 0:02:30]} 48. Kh2 {[%emt 0:01:15]} Qb2 {[%emt 0:00:30]} 49. Qb8 {[%emt 0:01:53]} Qg7 {[%emt 0:03:30]} 50. Qb7 {[%emt 0:00:18]} Nd3 {[%emt 0:02:30]} 51. Kg2 {[%emt 0:02:07]} Ne1+ {[%emt 0:04:30]} 1/2-1/2

[Event "Istanbul Open 2019"]
[Site "Istanbul"]
[Date "2019.08.30"]
[Round "6.15"]
[White "Yalcinkaya, Efe"]
[Black "Ahmadov, Vusal"]
[Result "1-0"]
[ECO "C60"]
[WhiteElo "1542"]
[BlackElo "1775"]
[Annotator "NA"]
[PlyCount "67"]
[EventDate "2019.08.26"]
[EventType "swiss"]
[EventCountry "TUR"]
[SourceTitle "playchess.com"]
[Source "ChessBase"]
[SourceQuality "1"]
[TimeControl "5400+30"]

1. e4 e5 2. Nf3 Nc6 3. Bb5 Nge7 4. c3 g6 5. O-O Bg7 6. d4 exd4 7. cxd4 d5 8. e5 O-O 9. h3 f6 10. exf6 Rxf6 11. Bxc6 bxc6 12. Bg5 Rf7 13. Nc3 h6 14. Bh4 g5 15. Bg3 Ng6 {[%emt 0:33:30]} 16. Re1 {[%emt 0:52:00]} g4 {[%emt 0:05:30]} 17. hxg4 {[%emt 0:03:30]} Bxg4 {[%emt 0:00:30]} 18. Qd3 {[%emt 0:02:30]} Bf5 {[%emt 0:12:30]} 19. Qd2 {[%emt 0:00:30]} Qf6 {[%emt 0:03:30]} 20. Ne5 {[%emt 0:06:30]} Nxe5 {[%emt 0:00:30]} 21. dxe5 {[%emt 0:00:00]} Qg6 {[%emt 0:00:30]} 22. Ne2 {[%emt 0:04:00]} h5 {[%emt 0:01:30]} 23. Nf4 {[%emt 0:02:30]} Qg4 {[%emt 0:01:30]} 24. e6 {[%emt 0:01:30]} Re7 {[%emt 0:00:30]} 25. Qe2 {[%emt 0:00:30]} Qxe2 {[%emt 0:07:30]} 26. Rxe2 {[%emt 0:00:30]} Rb8 {[%emt 0:01:30]} 27. Rc1 {[%emt 0:02:30]} Rxb2 {[%emt 0:01:30]} 28. Rxb2 {[%emt 0:01:30]} Bxb2 {[%emt 0:00:30]} 29. Rxc6 {[%emt 0:00:00]} d4 {[%emt 0:04:30]} 30. Bh4 {[%emt 0:00:00]} Re8 {[%emt 0:00:30]} 31. Rxc7 {[%emt 0:07:48]} a5 {[%emt 0:11:12]} 32. Bf6 {[%emt 0:00:56]} Bxe6 {[%emt 0:00:33]} 33. Rg7+ {[%emt 0:00:06]} Kh8 {[%emt 0:01:35]} 34. Ng6# {[%emt 0:00:10]} 1-0